[Event "GrandPrix_29.05"]
[Site "Chess.com"]
[Date "2020.05.29"]
[Round "7"]
[White "Sakkcapak"]
[Black "kosmeg"]
[Result "1/2-1/2"]
[WhiteElo "2098"]
[BlackElo "2048"]
[TimeControl "600+2"]
[EndTime "12:33:55 PDT"]
[Termination "Game drawn by agreement"]

1. c4 {[%clk 0:10:01.9]} 1... e5 {[%clk 0:10:00.1]} 2. g3 {[%clk 0:10:02]} 2...
Nf6 {[%clk 0:10:00.3]} 3. Bg2 {[%clk 0:10:02.3]} 3... c6 {[%clk 0:10:01.6]} 4.
Nf3 {[%clk 0:10:01.9]} 4... e4 {[%clk 0:10:02.4]} 5. Nd4 {[%clk 0:10:02.4]} 5...
d5 {[%clk 0:10:03.7]} 6. d3 {[%clk 0:10:03.2]} 6... Bc5 {[%clk 0:09:45.7]} 7.
Nb3 {[%clk 0:10:01.4]} 7... Bb4+ {[%clk 0:09:45.5]} 8. Bd2 {[%clk 0:10:01.7]}
8... Bxd2+ {[%clk 0:09:45.3]} 9. Qxd2 {[%clk 0:10:02.3]} 9... O-O {[%clk
0:09:44.8]} 10. Nc3 {[%clk 0:09:49.3]} 10... exd3 {[%clk 0:09:05.1]} 11. Qxd3
{[%clk 0:09:43.5]} 11... dxc4 {[%clk 0:08:53.5]} 12. Qxc4 {[%clk 0:09:41]} 12...
Be6 {[%clk 0:08:54.3]} 13. Qa4 {[%clk 0:09:16.7]} 13... Nbd7 {[%clk 0:08:41.7]}
14. O-O {[%clk 0:09:09.1]} 14... Qb6 {[%clk 0:08:08.1]} 15. Nd4 {[%clk 0:08:08]}
15... Nc5 {[%clk 0:07:39.1]} 16. Qc2 {[%clk 0:08:04.1]} 16... Bg4 {[%clk
0:06:50]} 17. e3 {[%clk 0:07:47.6]} 17... Ne6 {[%clk 0:06:27.2]} 18. Nxe6 {[%clk
0:07:17.1]} 18... Bxe6 {[%clk 0:06:29.1]} 19. Na4 {[%clk 0:07:15.7]} 19... Qb5
{[%clk 0:05:32.2]} 20. Rfc1 {[%clk 0:06:39.9]} 20... Rad8 {[%clk 0:05:06.4]} 21.
Nc5 {[%clk 0:06:22]} 21... Bc8 {[%clk 0:04:55.8]} 22. Rd1 {[%clk 0:05:45.2]}
22... b6 {[%clk 0:04:38]} 23. Ne4 {[%clk 0:05:27]} 23... Nd5 {[%clk 0:03:48.8]}
24. a4 {[%clk 0:04:56.1]} 24... Qb4 {[%clk 0:02:49.3]} 25. Rd4 {[%clk
0:04:22.5]} 25... Qe7 {[%clk 0:02:44.6]} 26. Qxc6 {[%clk 0:04:18.1]} 26... Bb7
{[%clk 0:02:45.4]} 27. Qb5 {[%clk 0:03:58.6]} 27... Nc7 {[%clk 0:02:37.4]} 28.
Qd3 {[%clk 0:03:48.8]} 28... Ne6 {[%clk 0:02:37.1]} 29. Rxd8 {[%clk 0:03:42.1]}
29... Rxd8 {[%clk 0:02:39]} 30. Qe2 {[%clk 0:03:40.7]} 30... f5 {[%clk
0:02:18.8]} 31. Nc3 {[%clk 0:03:33.7]} 31... Bxg2 {[%clk 0:02:14.8]} 32. Kxg2
{[%clk 0:03:35.6]} 32... Qb7+ {[%clk 0:01:53.4]} 33. f3 {[%clk 0:03:26.4]} 33...
Nc5 {[%clk 0:01:07.9]} 34. Rd1 {[%clk 0:03:21.4]} 34... Rxd1 {[%clk 0:01:03.4]}
35. Qxd1 {[%clk 0:03:19.2]} 35... Kf7 {[%clk 0:00:57.4]} 36. b4 {[%clk
0:03:14.9]} 36... Ne6 {[%clk 0:00:57.8]} 37. Qd5 {[%clk 0:02:30.6]} 37... Qxd5
{[%clk 0:00:58.5]} 38. Nxd5 {[%clk 0:02:32.5]} 38... Nd8 {[%clk 0:00:57.3]} 39.
Kf2 {[%clk 0:02:27.3]} 39... Ke6 {[%clk 0:00:58.1]} 40. Nc7+ {[%clk 0:02:26.2]}
40... Ke5 {[%clk 0:00:59.1]} 41. Nb5 {[%clk 0:02:15.8]} 41... Nc6 {[%clk
0:00:58.4]} 42. Ke2 {[%clk 0:02:11.2]} 42... a6 {[%clk 0:00:59.5]} 43. Na3
{[%clk 0:01:37.9]} 43... Nxb4 {[%clk 0:00:44.2]} 44. Nc4+ {[%clk 0:01:38.8]}
44... Kd5 {[%clk 0:00:45.3]} 45. Nxb6+ {[%clk 0:01:39.7]} 45... Kc5 {[%clk
0:00:46.7]} 46. Nd7+ {[%clk 0:01:33.9]} 46... Kc4 {[%clk 0:00:47.9]} 47. Nf8
{[%clk 0:01:15]} 47... Kb3 {[%clk 0:00:48.9]} 48. e4 {[%clk 0:01:02.1]} 48...
fxe4 {[%clk 0:00:46.1]} 49. fxe4 {[%clk 0:01:04]} 49... Kxa4 {[%clk 0:00:47]}
50. e5 {[%clk 0:00:58.7]} 50... Kb5 {[%clk 0:00:47.7]} 51. e6 {[%clk 0:00:51.2]}
51... Nd5 {[%clk 0:00:46.6]} 52. Nxh7 {[%clk 0:00:49.8]} 52... a5 {[%clk
0:00:46.8]} 53. Ng5 {[%clk 0:00:45.8]} 53... a4 {[%clk 0:00:46.6]} 54. Kd2
{[%clk 0:00:37]} 54... a3 {[%clk 0:00:46.6]} 55. Kc2 {[%clk 0:00:35.9]} 55...
Kc4 {[%clk 0:00:48]} 56. Ne4 {[%clk 0:00:31]} 56... Kd4 {[%clk 0:00:31.3]} 57.
Nc3 {[%clk 0:00:23.8]} 57... Ne7 {[%clk 0:00:13.8]} 58. Nb5+ {[%clk 0:00:24.9]}
58... Ke5 {[%clk 0:00:13.4]} 59. Nxa3 {[%clk 0:00:26.8]} 59... Kxe6 {[%clk
0:00:14.6]} 60. Kd3 {[%clk 0:00:26.4]} 60... Kf5 {[%clk 0:00:16.5]} 61. Ke3
{[%clk 0:00:26.3]} 61... Kg4 {[%clk 0:00:17.9]} 62. Kf2 {[%clk 0:00:27]} 62...
Nf5 {[%clk 0:00:17.6]} 63. Nc2 {[%clk 0:00:20.9]} 63... Kh3 {[%clk 0:00:18.9]}
64. Kg1 {[%clk 0:00:21.2]} 64... Nxg3 {[%clk 0:00:19.9]} 65. hxg3 {[%clk
0:00:20.9]} 65... Kxg3 {[%clk 0:00:21.8]} 1/2-1/2

[Event "GrandPrix_29.05"]
[Site "Chess.com"]
[Date "2020.05.29"]
[Round "7"]
[White "LuckyLuka04"]
[Black "lelajavakhishvili"]
[Result "0-1"]
[WhiteElo "2158"]
[BlackElo "2181"]
[TimeControl "600+2"]
[EndTime "12:33:58 PDT"]
[Termination "lelajavakhishvili won by resignation"]

1. d4 {[%clk 0:10:01.9]} 1... Nf6 {[%clk 0:09:55.3]} 2. Nf3 {[%clk 0:10:02.3]}
2... e6 {[%clk 0:09:49.3]} 3. Bf4 {[%clk 0:10:03.3]} 3... b6 {[%clk 0:09:41.6]}
4. e3 {[%clk 0:10:03.2]} 4... Bb7 {[%clk 0:09:42.6]} 5. h3 {[%clk 0:09:54.6]}
5... d6 {[%clk 0:09:38.2]} 6. Bd3 {[%clk 0:09:51.5]} 6... Nbd7 {[%clk
0:09:38.6]} 7. Bh2 {[%clk 0:09:49.3]} 7... g6 {[%clk 0:09:38.8]} 8. Nbd2 {[%clk
0:09:33.9]} 8... Bg7 {[%clk 0:09:38]} 9. e4 {[%clk 0:09:33.2]} 9... O-O {[%clk
0:09:37.6]} 10. O-O {[%clk 0:09:30.1]} 10... Qe7 {[%clk 0:09:37.3]} 11. Re1
{[%clk 0:09:24.5]} 11... e5 {[%clk 0:09:35.8]} 12. c3 {[%clk 0:09:23.4]} 12...
Nh5 {[%clk 0:09:34.1]} 13. a4 {[%clk 0:09:16.1]} 13... a5 {[%clk 0:09:20.9]} 14.
Nc4 {[%clk 0:08:56.5]} 14... h6 {[%clk 0:09:02.6]} 15. Ne3 {[%clk 0:08:44.7]}
15... Rae8 {[%clk 0:08:01.2]} 16. Qc2 {[%clk 0:07:27.4]} 16... Qd8 {[%clk
0:07:36.4]} 17. Rad1 {[%clk 0:07:05.1]} 17... Nf4 {[%clk 0:07:30.5]} 18. Bxf4
{[%clk 0:06:46.3]} 18... exf4 {[%clk 0:07:30.6]} 19. Nc4 {[%clk 0:06:42.5]}
19... d5 {[%clk 0:07:06.1]} 20. Ncd2 {[%clk 0:06:14]} 20... Nf6 {[%clk
0:06:37.7]} 21. e5 {[%clk 0:05:44.4]} 21... Nh7 {[%clk 0:06:32.7]} 22. b4 {[%clk
0:05:31.2]} 22... Bc8 {[%clk 0:06:14.2]} 23. Nb3 {[%clk 0:05:02.8]} 23... Ng5
{[%clk 0:06:08]} 24. Nh2 {[%clk 0:04:37.5]} 24... Bd7 {[%clk 0:05:03.8]} 25.
bxa5 {[%clk 0:04:21.8]} 25... Bxa4 {[%clk 0:05:03.8]} 26. axb6 {[%clk 0:04:07]}
26... cxb6 {[%clk 0:05:03.7]} 27. Qa2 {[%clk 0:04:07.1]} 27... Bc6 {[%clk
0:05:01.1]} 28. f3 {[%clk 0:03:50.5]} 28... Ne6 {[%clk 0:04:44.3]} 29. Ra1
{[%clk 0:03:47.7]} 29... Qg5 {[%clk 0:04:42.1]} 30. Qf2 {[%clk 0:03:43.1]} 30...
Ra8 {[%clk 0:04:36]} 31. Rxa8 {[%clk 0:03:38.5]} 31... Rxa8 {[%clk 0:04:36.5]}
32. Ra1 {[%clk 0:03:39.6]} 32... Rxa1+ {[%clk 0:04:32.8]} 33. Nxa1 {[%clk
0:03:41.5]} 33... h5 {[%clk 0:04:33.9]} 34. Nc2 {[%clk 0:03:37.9]} 34... Bf8
{[%clk 0:04:34.9]} 35. Qe1 {[%clk 0:03:03.1]} 35... Qd8 {[%clk 0:04:29.7]} 36.
Qa1 {[%clk 0:03:00.5]} 36... Be7 {[%clk 0:04:28.6]} 37. Qa7 {[%clk 0:02:04.5]}
37... Ng5 {[%clk 0:03:58.3]} 38. Qa2 {[%clk 0:01:24.2]} 38... Qd7 {[%clk
0:03:40.5]} 39. Nf1 {[%clk 0:01:08.1]} 39... Kg7 {[%clk 0:03:13.5]} 40. Qb2
{[%clk 0:01:01.4]} 40... Bd8 {[%clk 0:03:03.7]} 41. Nb4 {[%clk 0:01:01.4]} 41...
Bb7 {[%clk 0:02:55.8]} 42. Qe2 {[%clk 0:01:02.7]} 42... Qc7 {[%clk 0:02:40.1]}
43. Qd2 {[%clk 0:00:58.6]} 43... Ne6 {[%clk 0:02:39.3]} 44. Bb1 {[%clk
0:00:56.7]} 44... Be7 {[%clk 0:02:13.7]} 45. Nd3 {[%clk 0:00:56.4]} 45... Bg5
{[%clk 0:02:04.4]} 46. Ba2 {[%clk 0:00:51.1]} 46... Qd7 {[%clk 0:01:38.9]} 47.
Qb2 {[%clk 0:00:49.6]} 47... Bd8 {[%clk 0:01:36.4]} 48. Nb4 {[%clk 0:00:50.2]}
48... Qb5 {[%clk 0:01:19.9]} 49. Qb3 {[%clk 0:00:49.8]} 49... Bh4 {[%clk
0:01:09.6]} 50. Qc2 {[%clk 0:00:28.1]} 50... Nxd4 {[%clk 0:00:51.5]} 51. cxd4
{[%clk 0:00:21.5]} 51... Qxb4 {[%clk 0:00:52.5]} 52. Qd2 {[%clk 0:00:17]} 52...
Be1 {[%clk 0:00:49.3]} 53. Qd3 {[%clk 0:00:16.4]} 53... Qb2 {[%clk 0:00:47]} 54.
Bb3 {[%clk 0:00:14.4]} 54... Bc6 {[%clk 0:00:42.4]} 55. Bc2 {[%clk 0:00:14.7]}
55... Bb5 {[%clk 0:00:39.8]} 56. Qd1 {[%clk 0:00:16.3]} 56... Bc3 {[%clk
0:00:39.1]} 57. Nh2 {[%clk 0:00:13.4]} 57... Bxd4+ {[%clk 0:00:39.8]} 58. Kh1
{[%clk 0:00:14.8]} 58... Bxe5 {[%clk 0:00:39.7]} 59. Bb1 {[%clk 0:00:15.9]}
59... Qe2 {[%clk 0:00:38.7]} 60. Qc1 {[%clk 0:00:14.4]} 60... Bc4 {[%clk
0:00:35]} 61. Kg1 {[%clk 0:00:09.5]} 61... Bd4+ {[%clk 0:00:35.5]} 62. Kh1
{[%clk 0:00:10.2]} 62... b5 {[%clk 0:00:36.4]} 63. Bc2 {[%clk 0:00:08.3]} 63...
b4 {[%clk 0:00:36.1]} 64. Qb1 {[%clk 0:00:07.5]} 64... b3 {[%clk 0:00:34.5]} 65.
Bxb3 {[%clk 0:00:05.2]} 65... Bxb3 {[%clk 0:00:35.4]} 0-1

[Event "GrandPrix_29.05"]
[Site "Chess.com"]
[Date "2020.05.29"]
[Round "7"]
[White "Frozygul"]
[Black "Korchmar_Vasiliy"]
[Result "0-1"]
[WhiteElo "2126"]
[BlackElo "2081"]
[TimeControl "600+2"]
[EndTime "12:33:58 PDT"]
[Termination "Korchmar_Vasiliy won by resignation"]

1. d4 {[%clk 0:10:01.9]} 1... Nf6 {[%clk 0:10:00.3]} 2. c3 {[%clk 0:10:02.8]}
2... g6 {[%clk 0:09:59.5]} 3. Nf3 {[%clk 0:09:58.2]} 3... Bg7 {[%clk 0:10:00.1]}
4. Bf4 {[%clk 0:09:58.1]} 4... O-O {[%clk 0:10:00.4]} 5. e3 {[%clk 0:09:58.1]}
5... b6 {[%clk 0:10:01.5]} 6. Be2 {[%clk 0:09:58.7]} 6... Bb7 {[%clk 0:10:02.9]}
7. Nbd2 {[%clk 0:10:00]} 7... d6 {[%clk 0:10:04.3]} 8. Bg3 {[%clk 0:09:57.7]}
8... Nbd7 {[%clk 0:10:05.3]} 9. O-O {[%clk 0:09:58.4]} 9... e6 {[%clk
0:09:54.1]} 10. Qc2 {[%clk 0:09:46.9]} 10... Qe7 {[%clk 0:09:51.9]} 11. a4
{[%clk 0:09:38.5]} 11... a5 {[%clk 0:09:52.1]} 12. Rfd1 {[%clk 0:09:22]} 12...
h6 {[%clk 0:09:41.9]} 13. Rac1 {[%clk 0:09:18.5]} 13... Nh5 {[%clk 0:09:32.2]}
14. Ne1 {[%clk 0:09:02.5]} 14... Nxg3 {[%clk 0:09:31.2]} 15. hxg3 {[%clk
0:09:02]} 15... f5 {[%clk 0:09:22.5]} 16. Bf3 {[%clk 0:08:44]} 16... d5 {[%clk
0:08:51.8]} 17. b4 {[%clk 0:08:22.4]} 17... e5 {[%clk 0:08:12.5]} 18. dxe5
{[%clk 0:07:59.1]} 18... Nxe5 {[%clk 0:08:12.4]} 19. b5 {[%clk 0:08:01]} 19...
Kh7 {[%clk 0:06:46.2]} 20. c4 {[%clk 0:08:00.5]} 20... Nxf3+ {[%clk 0:06:41.6]}
21. Nexf3 {[%clk 0:07:58.7]} 21... dxc4 {[%clk 0:06:42.5]} 22. Qxc4 {[%clk
0:07:57.5]} 22... Rac8 {[%clk 0:06:34.3]} 23. Nd4 {[%clk 0:07:32.1]} 23... Rfd8
{[%clk 0:06:34.9]} 24. Nc6 {[%clk 0:06:50.1]} 24... Bxc6 {[%clk 0:06:35.2]} 25.
Qxc6 {[%clk 0:06:52]} 25... Qb4 {[%clk 0:06:06.8]} 26. Nf3 {[%clk 0:06:39]}
26... Qxa4 {[%clk 0:05:21.8]} 27. Rd7 {[%clk 0:05:40]} 27... Qe4 {[%clk
0:04:38.5]} 28. Nd4 {[%clk 0:03:37.6]} 28... a4 {[%clk 0:02:23.4]} 29. Rxg7+
{[%clk 0:02:18.8]} 29... Kxg7 {[%clk 0:02:22.4]} 30. Ne6+ {[%clk 0:02:20.4]}
30... Kf7 {[%clk 0:01:39.3]} 31. Nxd8+ {[%clk 0:02:07.2]} 31... Rxd8 {[%clk
0:01:41.2]} 32. Qxc7+ {[%clk 0:01:58.5]} 32... Ke8 {[%clk 0:01:41.3]} 33. Qxb6
{[%clk 0:01:39.8]} 33... f4 {[%clk 0:00:59.7]} 34. Rc6 {[%clk 0:01:17.6]} 34...
fxg3 {[%clk 0:00:38.2]} 35. Re6+ {[%clk 0:01:14]} 35... Kf7 {[%clk 0:00:38.9]}
36. Rf6+ {[%clk 0:00:41.4]} 36... Ke7 {[%clk 0:00:40.1]} 37. fxg3 {[%clk
0:00:34.9]} 37... Rd1+ {[%clk 0:00:19.8]} 38. Kh2 {[%clk 0:00:35.6]} 38... Rd2
{[%clk 0:00:20.7]} 39. Qc5+ {[%clk 0:00:27.1]} 39... Kxf6 {[%clk 0:00:21]} 40.
Qc3+ {[%clk 0:00:25.5]} 40... Qe5 {[%clk 0:00:13.2]} 41. Qxd2 {[%clk 0:00:25.9]}
41... Qh5+ {[%clk 0:00:13.3]} 42. Kg1 {[%clk 0:00:26.3]} 42... Qxb5 {[%clk
0:00:15.2]} 43. Qd6+ {[%clk 0:00:25.9]} 43... Kf7 {[%clk 0:00:13.7]} 44. Qf4+
{[%clk 0:00:20.4]} 44... Ke6 {[%clk 0:00:13.4]} 45. Qxh6 {[%clk 0:00:20.4]}
45... Qd3 {[%clk 0:00:07]} 46. Qh3+ {[%clk 0:00:18.6]} 46... Ke5 {[%clk
0:00:04.8]} 47. Kf2 {[%clk 0:00:10.8]} 47... a3 {[%clk 0:00:05.6]} 48. Qh8+
{[%clk 0:00:10.1]} 48... Kd5 {[%clk 0:00:05.6]} 49. Qd8+ {[%clk 0:00:10.8]}
49... Kc4 {[%clk 0:00:07]} 50. Qc7+ {[%clk 0:00:11.5]} 50... Kb3 {[%clk
0:00:08.1]} 51. Qb6+ {[%clk 0:00:12.4]} 51... Kc2 {[%clk 0:00:08.8]} 52. Qc5+
{[%clk 0:00:13.1]} 52... Kb2 {[%clk 0:00:09.3]} 53. Qb4+ {[%clk 0:00:13.4]}
53... Qb3 {[%clk 0:00:09.8]} 54. Qd4+ {[%clk 0:00:14.5]} 54... Qc3 {[%clk
0:00:11]} 55. Qb6+ {[%clk 0:00:10.3]} 55... Kc1 {[%clk 0:00:11.7]} 56. Ke2
{[%clk 0:00:05.5]} 56... Qb2+ {[%clk 0:00:12]} 57. Kf3 {[%clk 0:00:06.1]} 57...
Qxb6 {[%clk 0:00:12.2]} 0-1

[Event "GrandPrix_29.05"]
[Site "Chess.com"]
[Date "2020.05.29"]
[Round "7"]
[White "DaviD-GevorG"]
[Black "BlackBoarder"]
[Result "0-1"]
[WhiteElo "1832"]
[BlackElo "2142"]
[TimeControl "600+2"]
[EndTime "12:33:58 PDT"]
[Termination "BlackBoarder won by checkmate"]

1. Nf3 {[%clk 0:10:01.9]} 1... Nf6 {[%clk 0:09:28.5]} 2. g3 {[%clk 0:10:01.6]}
2... g6 {[%clk 0:09:27]} 3. Bg2 {[%clk 0:10:02.8]} 3... Bg7 {[%clk 0:09:27.2]}
4. d4 {[%clk 0:10:04.1]} 4... O-O {[%clk 0:09:23.7]} 5. c4 {[%clk 0:10:05.3]}
5... c6 {[%clk 0:09:23.8]} 6. O-O {[%clk 0:10:02.4]} 6... d5 {[%clk 0:09:24.4]}
7. cxd5 {[%clk 0:10:04.3]} 7... cxd5 {[%clk 0:09:25]} 8. Ne5 {[%clk 0:10:06]}
8... Nc6 {[%clk 0:09:23.1]} 9. Nxc6 {[%clk 0:10:05.7]} 9... bxc6 {[%clk
0:09:23.6]} 10. Nd2 {[%clk 0:10:06.9]} 10... Nd7 {[%clk 0:08:40.1]} 11. Nb3
{[%clk 0:10:06.7]} 11... e5 {[%clk 0:08:37.6]} 12. e4 {[%clk 0:10:00.6]} 12...
exd4 {[%clk 0:08:27.9]} 13. Nxd4 {[%clk 0:09:55.9]} 13... Qb6 {[%clk 0:08:27.5]}
14. Nb3 {[%clk 0:09:53.3]} 14... Ba6 {[%clk 0:08:21.7]} 15. Re1 {[%clk
0:09:50.5]} 15... d4 {[%clk 0:08:14.4]} 16. f4 {[%clk 0:09:39.7]} 16... c5
{[%clk 0:07:38.1]} 17. e5 {[%clk 0:09:40.6]} 17... Bb7 {[%clk 0:07:29.3]} 18.
Nd2 {[%clk 0:09:35]} 18... Bxg2 {[%clk 0:07:24.3]} 19. Kxg2 {[%clk 0:09:36.9]}
19... Rfe8 {[%clk 0:07:02.9]} 20. Nc4 {[%clk 0:09:31.9]} 20... Qa6 {[%clk
0:06:46.2]} 21. b3 {[%clk 0:09:16]} 21... f6 {[%clk 0:06:26.4]} 22. Nd6 {[%clk
0:08:00.2]} 22... Qc6+ {[%clk 0:06:02]} 23. Kg1 {[%clk 0:07:11.7]} 23... Re6
{[%clk 0:05:49.6]} 24. exf6 {[%clk 0:07:06.9]} 24... Qxd6 {[%clk 0:05:21.6]} 25.
Rxe6 {[%clk 0:06:54]} 25... Qxe6 {[%clk 0:05:22.2]} 26. fxg7 {[%clk 0:06:55.4]}
26... Re8 {[%clk 0:05:19]} 27. Bd2 {[%clk 0:06:18.5]} 27... Kxg7 {[%clk
0:05:06.9]} 28. Qc2 {[%clk 0:05:50]} 28... Qd5 {[%clk 0:04:36.3]} 29. Re1 {[%clk
0:05:01]} 29... Rxe1+ {[%clk 0:04:32.4]} 30. Bxe1 {[%clk 0:05:02.9]} 30... Nf6
{[%clk 0:04:26.4]} 31. Qd3 {[%clk 0:04:49]} 31... h5 {[%clk 0:03:52.7]} 32. h3
{[%clk 0:04:30]} 32... Kf7 {[%clk 0:03:38.1]} 33. Qa6 {[%clk 0:04:05.3]} 33...
Qd7 {[%clk 0:03:20.5]} 34. Qc4+ {[%clk 0:03:30.9]} 34... Qd5 {[%clk 0:03:01.5]}
35. Qa6 {[%clk 0:02:08.9]} 35... Qd7 {[%clk 0:03:01.4]} 36. Qc4+ {[%clk
0:01:54.7]} 36... Qe6 {[%clk 0:03:01.5]} 37. Qxe6+ {[%clk 0:01:53.2]} 37... Kxe6
{[%clk 0:03:02.6]} 38. Kf2 {[%clk 0:01:34.7]} 38... Kd5 {[%clk 0:02:13.5]} 39.
Kf3 {[%clk 0:01:34.3]} 39... Ne4 {[%clk 0:01:12.9]} 40. g4 {[%clk 0:01:33.7]}
40... Nd6 {[%clk 0:00:51.7]} 41. Bh4 {[%clk 0:00:32.9]} 41... Nb5 {[%clk
0:00:15.4]} 42. f5 {[%clk 0:00:23]} 42... hxg4+ {[%clk 0:00:13.4]} 43. Kxg4
{[%clk 0:00:24]} 43... gxf5+ {[%clk 0:00:13.2]} 44. Kxf5 {[%clk 0:00:25.9]}
44... d3 {[%clk 0:00:14.5]} 45. Be1 {[%clk 0:00:13.6]} 45... Nd4+ {[%clk
0:00:04.4]} 46. Kf4 {[%clk 0:00:14.2]} 46... c4 {[%clk 0:00:02.6]} 47. bxc4+
{[%clk 0:00:03.5]} 47... Kxc4 {[%clk 0:00:04.5]} 48. h4 {[%clk 0:00:03.7]} 48...
Ne6+ {[%clk 0:00:05.7]} 49. Ke3 {[%clk 0:00:04.3]} 49... Ng7 {[%clk 0:00:04.9]}
50. Bd2 {[%clk 0:00:03.6]} 50... Nf5+ {[%clk 0:00:05.1]} 51. Ke4 {[%clk
0:00:03]} 51... Nxh4 {[%clk 0:00:07]} 52. Ke5 {[%clk 0:00:03.5]} 52... Nf3+
{[%clk 0:00:08]} 53. Kd6 {[%clk 0:00:04.7]} 53... Nxd2 {[%clk 0:00:09.9]} 54.
Kc7 {[%clk 0:00:06.1]} 54... Nb1 {[%clk 0:00:10.5]} 55. Kb7 {[%clk 0:00:07.5]}
55... a5 {[%clk 0:00:12]} 56. Ka6 {[%clk 0:00:08.9]} 56... a4 {[%clk 0:00:13.9]}
57. Ka5 {[%clk 0:00:10.4]} 57... a3 {[%clk 0:00:15.8]} 58. Ka4 {[%clk 0:00:12]}
58... d2 {[%clk 0:00:17.7]} 59. Ka5 {[%clk 0:00:13.3]} 59... d1=Q {[%clk
0:00:18.9]} 60. Ka6 {[%clk 0:00:15.2]} 60... Qd6+ {[%clk 0:00:20]} 61. Ka5
{[%clk 0:00:16.5]} 61... Qc7+ {[%clk 0:00:20.5]} 62. Ka6 {[%clk 0:00:17.5]}
62... Qb8 {[%clk 0:00:18.6]} 63. Ka5 {[%clk 0:00:18.5]} 63... Qb5# {[%clk
0:00:19.8]} 0-1

[Event "GrandPrix_29.05"]
[Site "Chess.com"]
[Date "2020.05.29"]
[Round "7"]
[White "troisi"]
[Black "Martin_Petrov2000"]
[Result "0-1"]
[WhiteElo "1570"]
[BlackElo "2043"]
[TimeControl "600+2"]
[EndTime "12:34:00 PDT"]
[Termination "Martin_Petrov2000 won by checkmate"]

1. e4 {[%clk 0:10:01.9]} 1... c5 {[%clk 0:09:58.4]} 2. c3 {[%clk 0:09:17]} 2...
Nf6 {[%clk 0:09:56.2]} 3. e5 {[%clk 0:09:14.3]} 3... Nd5 {[%clk 0:09:57.3]} 4.
d4 {[%clk 0:09:15.9]} 4... cxd4 {[%clk 0:09:58.9]} 5. cxd4 {[%clk 0:09:17.8]}
5... d6 {[%clk 0:09:59]} 6. Nf3 {[%clk 0:09:18.4]} 6... Nc6 {[%clk 0:09:59.6]}
7. Bc4 {[%clk 0:09:12.6]} 7... Nb6 {[%clk 0:10:00.5]} 8. Bb5 {[%clk 0:09:09.6]}
8... dxe5 {[%clk 0:10:01.3]} 9. Nxe5 {[%clk 0:09:10.1]} 9... Bd7 {[%clk
0:10:01.9]} 10. Nxc6 {[%clk 0:08:28.6]} 10... Bxc6 {[%clk 0:09:57.1]} 11. Bxc6+
{[%clk 0:08:25.1]} 11... bxc6 {[%clk 0:09:59]} 12. O-O {[%clk 0:08:25.4]} 12...
e6 {[%clk 0:09:55.1]} 13. Nc3 {[%clk 0:08:26.5]} 13... Be7 {[%clk 0:09:53.6]}
14. Qf3 {[%clk 0:08:26.3]} 14... Qd7 {[%clk 0:09:53]} 15. Rd1 {[%clk 0:08:17.9]}
15... O-O {[%clk 0:09:52.8]} 16. Be3 {[%clk 0:08:18.4]} 16... Nd5 {[%clk
0:09:47.6]} 17. Rac1 {[%clk 0:08:12.7]} 17... Rab8 {[%clk 0:09:47.2]} 18. Na4
{[%clk 0:07:54.5]} 18... Rfc8 {[%clk 0:09:32.5]} 19. b3 {[%clk 0:07:35.8]} 19...
Nb4 {[%clk 0:09:11.8]} 20. Bf4 {[%clk 0:06:22.3]} 20... Rb5 {[%clk 0:08:54.8]}
21. Nc3 {[%clk 0:05:31.3]} 21... Rf5 {[%clk 0:08:53.8]} 22. Qg3 {[%clk 0:05:25]}
22... h5 {[%clk 0:08:36.8]} 23. Be3 {[%clk 0:05:16.6]} 23... Bd6 {[%clk
0:08:23]} 24. Qh4 {[%clk 0:05:10.2]} 24... Nd5 {[%clk 0:08:13.4]} 25. Ne4 {[%clk
0:05:05.2]} 25... Be7 {[%clk 0:08:11.3]} 26. Qh3 {[%clk 0:05:03.6]} 26... a5
{[%clk 0:07:50.6]} 27. Ng3 {[%clk 0:04:59.2]} 27... Nxe3 {[%clk 0:07:17.1]} 28.
fxe3 {[%clk 0:04:55.4]} 28... Rg5 {[%clk 0:07:10.7]} 29. Nxh5 {[%clk 0:04:19.9]}
29... Qd5 {[%clk 0:07:02]} 30. Nf4 {[%clk 0:04:19.1]} 30... Qe4 {[%clk 0:07:03]}
31. Rf1 {[%clk 0:04:04.4]} 31... c5 {[%clk 0:06:23.6]} 32. d5 {[%clk 0:03:36.5]}
32... Rd8 {[%clk 0:03:52.3]} 33. Rc4 {[%clk 0:03:02.4]} 33... Qe5 {[%clk
0:03:48]} 34. dxe6 {[%clk 0:02:59.5]} 34... f6 {[%clk 0:03:47]} 35. Qf3 {[%clk
0:02:43.6]} 35... Rd2 {[%clk 0:03:37.8]} 36. h4 {[%clk 0:02:32.5]} 36... Rf5
{[%clk 0:03:20.4]} 37. g4 {[%clk 0:01:53.2]} 37... Rxf4 {[%clk 0:02:57]} 38.
exf4 {[%clk 0:01:16.5]} 38... Qxe6 {[%clk 0:02:56.1]} 39. Re4 {[%clk 0:01:11.8]}
39... Qd7 {[%clk 0:02:49.8]} 40. Rfe1 {[%clk 0:01:10]} 40... Bf8 {[%clk
0:02:46.1]} 41. R4e2 {[%clk 0:01:07.3]} 41... Rd3 {[%clk 0:02:46.5]} 42. Re3
{[%clk 0:01:05.3]} 42... Rd2 {[%clk 0:02:47.5]} 43. R1e2 {[%clk 0:01:06.1]}
43... Rd1+ {[%clk 0:02:48.3]} 44. Kg2 {[%clk 0:01:07]} 44... c4 {[%clk
0:02:17.5]} 45. Re8 {[%clk 0:00:59.3]} 45... c3 {[%clk 0:02:07.6]} 46. Qa8
{[%clk 0:00:42]} 46... Qxg4+ {[%clk 0:02:05.8]} 47. Kf2 {[%clk 0:00:39.9]} 47...
Qg1+ {[%clk 0:01:58.6]} 48. Kf3 {[%clk 0:00:40.3]} 48... Rf1+ {[%clk 0:01:58.7]}
49. Ke4 {[%clk 0:00:41.1]} 49... Qg6+ {[%clk 0:01:45.1]} 50. Kd5 {[%clk
0:00:23.1]} 50... Kh7 {[%clk 0:01:06.3]} 51. Rxf8 {[%clk 0:00:13.1]} 51... Qd3+
{[%clk 0:01:03.5]} 52. Kc5 {[%clk 0:00:13.8]} 52... Qxe2 {[%clk 0:01:03.7]} 53.
Rh8+ {[%clk 0:00:14]} 53... Kg6 {[%clk 0:01:04.7]} 54. h5+ {[%clk 0:00:15.9]}
54... Kf5 {[%clk 0:01:03.9]} 55. Re8 {[%clk 0:00:12.6]} 55... Qf2+ {[%clk
0:01:01.5]} 56. Kc4 {[%clk 0:00:12.8]} 56... Qxf4+ {[%clk 0:00:59.3]} 57. Kxc3
{[%clk 0:00:14.2]} 57... Qc1+ {[%clk 0:00:37.3]} 58. Kd3 {[%clk 0:00:10.9]}
58... Rd1+ {[%clk 0:00:32.8]} 59. Ke2 {[%clk 0:00:11.9]} 59... Qd2+ {[%clk
0:00:19.3]} 60. Kf3 {[%clk 0:00:12.5]} 60... Qf4+ {[%clk 0:00:15.9]} 61. Kg2
{[%clk 0:00:09.5]} 61... Rd2+ {[%clk 0:00:15.7]} 62. Kg1 {[%clk 0:00:09.5]}
62... Qf2+ {[%clk 0:00:15.6]} 63. Kh1 {[%clk 0:00:10.5]} 63... Qf1# {[%clk
0:00:16]} 0-1